fUSD/lending_fUSD_20260121
["ID","MTS","AMOUNT","RATE_DAILY","PERIOD"]
[402968926,1769019037979,-151.0,0.00016945,2]
[402968927,1769019037990,-1222.55520249,0.0001782,2]
[402968928,1769019038001,-1306.8598632,0.0001782,2]
[402968929,1769019038037,-3419.43099117,0.0001782,2]
[402968930,1769019038085,-43825.0,0.0001782,2]
[402968931,1769019038097,-508518.82901913,0.0001782,2]
[402968932,1769019038107,-302.41974858,0.00017829,2]
[402968933,1769019038117,-693.0,0.00017848,2]
[402968934,1769019038126,-693.0,0.0001794,2]
[402968935,1769019038136,-156.7,0.00017957,2]
[402968936,1769019038145,-600.0,0.00017976,2]
[402968937,1769019038155,-250.0,0.00017976,2]
[402968938,1769019038165,-2500.0,0.00017976,2]
[402968952,1769019038431,-693.0,0.00018011,2]
[402968954,1769019038444,-693.0,0.0001823,2]
[402968956,1769019038454,-693.0,0.00018263,2]
[402968958,1769019038465,-1500.0,0.00018268,2]
[402968960,1769019038475,-1500.0,0.00018268,2]
[402968962,1769019038485,-693.0,0.00018274,2]
[402968964,1769019038495,-693.0,0.00018358,2]
[402968966,1769019038505,-693.0,0.00018564,2]
[402968968,1769019038515,-1353.23,0.00018601,2]
[402968970,1769019038527,-693.0,0.0001861,2]
[402968972,1769019038537,-693.0,0.00018613,2]
[402968974,1769019038546,-748.27,0.00018643,2]
[402968976,1769019038556,-693.0,0.00018648,2]
[402968978,1769019038565,-693.0,0.00018665,2]
[402968980,1769019038575,-693.0,0.00018665,2]
[402968982,1769019038584,-693.0,0.00018691,2]
[402968984,1769019038595,-1852.42,0.00018709,2]
[402968986,1769019038604,-163.1,0.00018709,2]
[402968988,1769019038614,-20000.02,0.00018712,2]
[402968990,1769019038623,-1101.69074588,0.00018816,2]
[402968992,1769019038632,-1070.67630539,0.00018816,2]
[402968994,1769019038642,-693.0,0.00018861,2]
[402968996,1769019038651,-171.86,0.00018921,2]
[402968998,1769019038661,-693.0,0.00018936,2]
[402969000,1769019038671,-693.0,0.00018991,2]
[402969002,1769019038680,-300.0,0.00019,2]
[402969004,1769019038690,-693.0,0.0001905,2]
[402969006,1769019038701,-693.0,0.00019058,2]
[402969008,1769019038711,-500.0,0.00019178,2]
[402969010,1769019038721,-451.27468185,0.00019178,2]
[402969012,1769019038730,-250.09642599,0.00019178,2]
[402969014,1769019038740,-693.0,0.00019187,2]
[402969016,1769019038750,-150.01360472,0.00019398,8]
[402969018,1769019038760,-693.0,0.00019438,2]
[402969020,1769019038769,-693.0,0.00019474,2]
[402969022,1769019038779,-693.0,0.00019502,2]
[402969024,1769019038789,-534.0,0.000196,2]
[402969026,1769019038799,-158.37327714,0.00019711,2]
[402969028,1769019038808,-163.1,0.00019879,2]
[402969030,1769019038819,-3587.73445889,0.000199,2]
[402969032,1769019038829,-152.14592756,0.00020035,3]
[402969034,1769019038838,-171.86,0.00020497,2]
[402969036,1769019038848,-748.27,0.00020715,2]
[402969038,1769019038858,-200.0,0.00020805,2]
[402969040,1769019038868,-350.0,0.00021,2]
[402969042,1769019038878,-163.1,0.00021048,2]
[402969044,1769019038888,-500.0,0.0002117,2]
[402969046,1769019038899,-266.0,0.0002135,2]
[402969048,1769019038917,-158.37327714,0.00021353,2]
[402969050,1769019038930,-20000.02,0.00021368,2]
[402969052,1769019038940,-250.0,0.00021434,2]
[402969054,1769019038950,-2488.565,0.00021687,2]
[402969056,1769019038961,-150.0,0.0002175,2]
[402969058,1769019038971,-194.916,0.0002175,2]
[402969060,1769019038982,-227.246,0.0002175,2]
[402969062,1769019038992,-250.0,0.0002175,2]
[402969064,1769019039001,-150.0,0.0002175,2]
[402969066,1769019039011,-157.766,0.0002175,2]
[402969068,1769019039021,-615.0,0.0002175,2]
[402969070,1769019039031,-3473.0,0.0002175,2]
[402969072,1769019039041,-1407.0,0.0002175,2]
[402969074,1769019039051,-1268.0,0.0002175,2]
[402969076,1769019039062,-5000.0,0.00021918,2]
[402969078,1769019039072,-300.0,0.00021918,2]
[402969080,1769019039083,-235.65244497,0.00021946,2]
[402969082,1769019039094,-947.7,0.00022,7]
[402969084,1769019039104,-171.86,0.00022074,2]
[402969086,1769019039114,-163.1,0.00022217,2]
[402969088,1769019039125,-150.01360472,0.00022452,20]
[402969090,1769019039135,-748.27,0.00022786,2]
[402969092,1769019039145,-158.37327714,0.00022996,2]
[402969094,1769019039155,-400.0,0.00023,2]
[402969096,1769019039167,-163.1,0.00023387,2]
[402969098,1769019039177,-171.86,0.00023651,2]
[402969100,1769019039186,-20000.02,0.00024024,2]
[402969102,1769019039198,-163.1,0.00024556,2]
[402969104,1769019039208,-158.37327714,0.00024638,2]
[402969106,1769019039218,-1000.0,0.00024658,2]
[402969108,1769019039229,-2440.0,0.00024687,2]
[402969110,1769019039239,-150.0,0.0002475,2]
[402969112,1769019039248,-150.0,0.0002475,2]
[402969114,1769019039258,-615.0,0.0002475,2]
[402969116,1769019039267,-1407.0,0.0002475,2]
[402969118,1769019039277,-1268.0,0.0002475,2]
[402969121,1769019039291,-748.27,0.00024858,120]
[402969123,1769019039301,-880.624,0.00025162,2]
[402969125,1769019039311,-947.7,0.000254,7]
[402969127,1769019039321,-150.01360472,0.00025507,32]
[402969129,1769019039330,-163.1,0.00025726,2]
[402969131,1769019039340,-154.98,0.00025766,2]
[402969133,1769019039351,-235.65244497,0.00026163,2]
[402969135,1769019039361,-158.37327714,0.00026281,2]
[402969137,1769019039372,-534.0,0.00026311,8]
[402969139,1769019039382,-10297.0,0.00026827,2]
[402969140,1769019039392,-163.1,0.00026895,2]
[402969143,1769019039403,-500.0,0.00027397,20]
[402969145,1769019039412,-150.0,0.00027397,5]
[402969147,1769019039422,-156.7,0.00027408,2]
[402969149,1769019039434,-81.74617267,0.0002775,2]
[402969154,1769019039475,-1325.25382733,0.0002775,2]
[402969156,1769019039488,-107.12459613,0.0002775,2]
[402969159,1769019039501,-307.12921891,0.0002775,2]
[402969161,1769019039513,-828.85000683,0.0002775,2]
[402969166,1769019039551,-24.89617813,0.0002775,2]
[402969168,1769019039561,-158.37327714,0.00027923,2]
[402969170,1769019039570,-122.47094094,0.00027945,5]
[402969172,1769019039581,-77.90300494,0.00027945,5]
[402969174,1769019039590,-163.1,0.00028064,2]
[402969176,1769019039599,-2501.36605618,0.00028246,2]
[402969236,1769019040077,-150.0,0.00024658,2]
[402969239,1769019040086,-2808.03190537,0.00028246,2]
[402969241,1769019040099,-123479.69499835,0.00028246,2]
[402969244,1769019040113,-14919.2741723,0.00028246,2]
[402969246,1769019040122,-947.7,0.000283,7]
[402969248,1769019040132,-150.01360472,0.00028562,43]
[402969250,1769019040142,-158.37327718,0.00029566,2]
[402969252,1769019040151,-500.0,0.0002997,2]
[402969254,1769019040162,-235.65244497,0.0003038,2]
[402969255,1769019040175,-1407.0,0.0003075,2]
[402969256,1769019040184,-1268.0,0.0003075,2]
[402969257,1769019040194,-156.68,0.00031515,2]
[402969258,1769019040206,-2000.0,0.000316,2]
[402969259,1769019040216,-150.01360478,0.00031617,54]
[402969260,1769019040226,-154.98,0.00032353,2]
[402969261,1769019040235,-14919.2741723,0.00032574,2]
[402969262,1769019040247,-947.7,0.000326,7]
[402969263,1769019040257,-500.0,0.00032603,2]
[402969264,1769019040266,-9394.81372636,0.00032826,2]
[402969265,1769019040277,-5000.0,0.00032826,2]
[402969266,1769019040293,-5000.0,0.00032826,2]
[402969267,1769019040302,-534.0,0.00033022,14]
[402969268,1769019040312,-128789.0929599,0.00033138,2]
[402969269,1769019040323,-3556.97,0.0003379,2]
[402969270,1769019040332,-1500.0,0.0003379,120]
[402969271,1769019040341,-25000.0,0.0003432,10]
[402969272,1769019040350,-235.65244497,0.00034597,2]
[402969273,1769019040360,-151.83476308,0.00034672,65]
[402969274,1769019040369,-156.7,0.00034937,2]
[402969275,1769019040379,-2000.0,0.000353,2]
[402969276,1769019040388,-1546.915,0.00035368,41]
[402969277,1769019040397,-227.918,0.00035368,41]
[402969278,1769019040407,-500.0,0.00035616,5]
[402969279,1769019040417,-14919.2741723,0.00036902,2]
[402969280,1769019040426,-1272.61560508,0.00037411,2]
[402969281,1769019040436,-163.0,0.00037599,11]
[402969282,1769019040445,-152.2017157,0.00037726,76]
[402969283,1769019040454,-128789.0929599,0.0003803,2]
[402969284,1769019040464,-3000.0,0.000385,7]
[402969286,1769019040473,-5800.0,0.00038763,14]
[402969288,1769019040482,-5800.0,0.00038771,14]
[402969290,1769019040492,-5800.0,0.0003878,14]
[402969291,1769019040501,-5800.0,0.00038788,14]
[402969292,1769019040510,-235.65244497,0.00038814,2]
[402969293,1769019040520,-515.44314341,0.00038846,2]
[402969294,1769019040529,-304.38145112,0.00038846,2]
[402969295,1769019040539,-300.0,0.00038846,2]
[402969296,1769019040548,-300.0,0.00038846,2]
[402969297,1769019040557,-300.0,0.00038846,2]
[402969298,1769019040566,-300.0,0.00038846,2]
[402969299,1769019040576,-850.48650463,0.00038846,2]
[402969300,1769019040586,-304.23239932,0.00038846,2]
[402969301,1769019040595,-300.0,0.00038846,2]
[402969302,1769019040604,-579.48942375,0.00038846,2]
[402969303,1769019040614,-300.0,0.00038846,2]
[402969304,1769019040623,-300.0,0.00038846,2]
[402969305,1769019040633,-300.0,0.00038846,2]
[402969306,1769019040642,-300.0,0.00038846,2]
[402969307,1769019040652,-305.40833228,0.00038846,2]
[402969308,1769019040662,-300.0,0.00038846,2]
[402969309,1769019040671,-300.0,0.00038846,2]
[402969310,1769019040680,-300.0,0.00038846,2]
[402969311,1769019040690,-456.00338787,0.00038846,2]
[402969312,1769019040699,-300.0,0.00038846,2]
[402969313,1769019040718,-300.0,0.00038846,2]
[402969314,1769019040729,-1075.48337091,0.00038846,2]
[402969315,1769019040738,-300.0,0.00038846,2]
[402969316,1769019040748,-300.0,0.00038846,2]
[402969317,1769019040758,-300.0,0.00038846,2]
[402969318,1769019040767,-369.14396502,0.00038846,2]
[402969319,1769019040777,-300.0,0.00038846,2]
[402969320,1769019040787,-300.0,0.00038846,2]
[402969321,1769019040797,-300.0,0.00038846,2]
[402969322,1769019040807,-300.0,0.00038846,2]
[402969323,1769019040816,-300.0,0.00038846,2]
[402969324,1769019040827,-300.0,0.00038846,2]
[402969325,1769019040838,-515.44314342,0.00038846,2]
[402969326,1769019040847,-304.38145112,0.00038846,2]
[402969327,1769019041179,-300.0,0.00038846,2]
[402969328,1769019041191,-300.0,0.00038846,2]
[402969329,1769019041200,-300.0,0.00038846,2]
[402969330,1769019041212,-300.0,0.00038846,2]
[402969331,1769019041223,-300.0,0.00038846,2]
[402969332,1769019041233,-300.0,0.00038846,2]
[402969333,1769019041243,-300.0,0.00038846,2]
[402969334,1769019041255,-300.0,0.00038846,2]
[402969335,1769019041264,-300.0,0.00038846,2]
[402969336,1769019041274,-300.0,0.00038846,2]
[402969337,1769019041285,-850.48650463,0.00038846,2]
[402969338,1769019041294,-304.23239932,0.00038846,2]
[402969339,1769019041305,-300.0,0.00038846,2]
[402969340,1769019041315,-579.48942375,0.00038846,2]
[402969341,1769019041325,-300.0,0.00038846,2]
[402969342,1769019041335,-300.0,0.00038846,2]
[402969343,1769019041345,-300.0,0.00038846,2]
[402969344,1769019041354,-300.0,0.00038846,2]
[402969345,1769019041363,-305.40833228,0.00038846,2]
[402969346,1769019041373,-300.0,0.00038846,2]
[402969347,1769019041387,-300.0,0.00038846,2]
[402969348,1769019041396,-300.0,0.00038846,2]
[402969349,1769019041405,-456.00338787,0.00038846,2]
[402969350,1769019041415,-300.0,0.00038846,2]
[402969351,1769019041425,-300.0,0.00038846,2]
[402969352,1769019041434,-1075.48337091,0.00038846,2]
[402969353,1769019041443,-300.0,0.00038846,2]
[402969354,1769019041453,-300.0,0.00038846,2]
[402969355,1769019041462,-300.0,0.00038846,2]
[402969356,1769019041473,-369.14396502,0.00038846,2]
[402969357,1769019041483,-300.0,0.00038846,2]
[402969358,1769019041493,-300.0,0.00038846,2]
[402969359,1769019041502,-300.0,0.00038846,2]
[402969360,1769019041511,-300.0,0.00038846,2]
[402969361,1769019041521,-10690.13935999,0.00038874,15]
[402969362,1769019041530,-322.0,0.00038939,11]
[402969363,1769019041540,-2000.0,0.00039,2]
[402969364,1769019041549,-876.0,0.00039015,11]
[402969365,1769019041559,-836.0,0.00039238,11]
[402969366,1769019041569,-947.7,0.000394,14]
[402969367,1769019041578,-534.0,0.00039733,21]
[402969368,1769019041587,-1100.0,0.0003987,2]
[402969369,1769019041597,-700.0,0.0003997,2]
[402969370,1769019041606,-1272.61560508,0.00040223,15]
[402969371,1769019041615,-258.29158626,0.00040362,14]
[402969372,1769019041624,-152.2017157,0.00040781,95]
[402969373,1769019041633,-1000.0,0.00040822,14]
[402969374,1769019041642,-300.0,0.00041095,2]
[402969375,1769019041652,-300.0,0.00041095,2]
[402969376,1769019041661,-300.0,0.00041095,2]
[402969377,1769019041670,-300.0,0.00041095,2]
[402969378,1769019041679,-300.0,0.00041095,2]
[402969379,1769019041689,-300.0,0.00041095,2]
[402969380,1769019041699,-300.0,0.00041095,2]
[402969381,1769019041708,-300.0,0.00041095,2]
[402969382,1769019041718,-300.0,0.00041095,2]
[402969383,1769019041727,-300.0,0.00041095,2]
[402969384,1769019041737,-300.0,0.00041095,2]
[402969385,1769019041746,-300.0,0.00041095,2]
[402969386,1769019041755,-302.84556108,0.00041095,2]
[402969387,1769019041768,-1000.0,0.00041096,30]
[402969388,1769019041778,-14919.2741723,0.0004123,2]
[402969389,1769019041788,-1000.0,0.0004137,30]
[402969390,1769019041797,-2798.54459285,0.00041595,7]
[402969391,1769019041807,-1000.0,0.00041644,30]
[402969392,1769019041816,-2862.0,0.00041784,30]
[402969393,1769019041826,-1000.0,0.00041918,30]
[402969394,1769019041836,-947.7,0.000421,14]
[402969395,1769019041846,-836.0,0.00042103,16]
[402969396,1769019041855,-163.71302419,0.00042153,2]
[402969397,1769019041865,-1000.0,0.00042192,30]
[402969398,1769019041874,-2862.0,0.00042215,30]
[402969399,1769019041884,-1000.0,0.00042466,30]
[402969400,1769019041893,-500.0,0.000426,20]
[402969401,1769019041902,-156.7,0.00042631,14]
[402969402,1769019041912,-2862.0,0.00042645,30]
[402969403,1769019041922,-2000.0,0.000427,2]
[402969404,1769019041932,-1000.0,0.0004274,30]
[402969405,1769019041942,-311.0,0.00042822,2]
[402969406,1769019041951,-2803.9145,0.0004287,2]
[402969407,1769019041961,-200.0,0.00042897,120]
[402969408,1769019041971,-224107.49977088,0.000429,7]
[402969409,1769019042139,-1051.3153,0.000429,7]
[402969410,1769019042194,-300.0,0.00038846,2]
[402969411,1769019042206,-188.79899082,0.000429,7]
[402969412,1769019042218,-702.048,0.000429,7]
[402969425,1769019043839,-2000.0,0.00017896,2]
[402969426,1769019043849,-150.0,0.00027123,2]
[402969427,1769019043858,-150.0,0.00029589,2]
[402969428,1769019043867,-300.0,0.00038846,2]
[402969429,1769019043877,-515.44314342,0.00038846,2]
[402969430,1769019043887,-273950.3379383,0.000429,7]
[402969431,1769019043896,-399.0,0.000429,3]
[402969432,1769019043906,-237.263365,0.00042922,7]
[402969433,1769019043915,-128789.0929599,0.00042922,2]
[402969434,1769019043925,-200.0,0.00042971,7]
[402969435,1769019043935,-1304.27795489,0.00043,15]
[402969436,1769019043944,-185.56,0.00043,14]
[402969437,1769019043953,-1450.0,0.00043,120]
[402969438,1769019043962,-498.66,0.00043,120]
[402969439,1769019043972,-2587.1095143,0.00043,120]
[402969440,1769019043981,-1000.0,0.00043014,30]
[402969441,1769019043991,-235.65244497,0.00043031,10]
[402969442,1769019044000,-1272.61560508,0.00043035,15]
[402969443,1769019044010,-150.0,0.0004307,2]
[402969444,1769019044019,-150.0,0.0004307,2]
[402969445,1769019044028,-150.0,0.0004307,2]
[402969446,1769019044038,-231.0,0.0004307,2]
[402969447,1769019044047,-2862.0,0.00043076,30]
[402969448,1769019044057,-27921.05566328,0.00043082,2]
[402969449,1769019044066,-9045.76646794,0.0004313,30]
[402969450,1769019044075,-47500.0475,0.00043131,2]
[402969451,1769019044085,-151.0,0.00043131,120]
[402969452,1769019044094,-151.0,0.00043131,120]
[402969453,1769019044104,-151.0,0.00043131,120]
[402969454,1769019044113,-151.0,0.00043131,120]
[402969455,1769019044123,-151.0,0.00043131,120]
[402969456,1769019044132,-151.0,0.00043131,120]
[402969457,1769019044142,-151.0,0.00043131,120]
[402969458,1769019044152,-151.0,0.00043131,120]
[402969459,1769019044163,-151.0,0.00043131,120]
[402969460,1769019044176,-151.0,0.00043131,120]
[402969461,1769019044186,-151.0,0.00043131,120]
[402969462,1769019044195,-151.0,0.00043131,120]
[402969463,1769019044206,-151.0,0.00043131,120]
[402969464,1769019044215,-176.640768,0.00043131,120]
[402969465,1769019044224,-250.645557,0.00043131,120]
[402969466,1769019044234,-38633.67005521,0.0004315,24]
[402969467,1769019044245,-35271.34180868,0.00043153,28]
[402969468,1769019044254,-200.0,0.00043153,120]
[402969469,1769019044263,-3012528.08571044,0.00043153,20]
[402969470,1769019044272,-548.58878237,0.00043153,7]
[402969471,1769019044282,-1070.28985439,0.00043153,7]
[402969472,1769019044291,-17686.34563091,0.00043153,20]
[402969473,1769019044300,-5891.10284742,0.00043153,2]
[402969474,1769019044309,-2033.2755759,0.00043153,5]
[402969475,1769019044319,-984.66722201,0.00043153,2]
[402969476,1769019044328,-247.81309369,0.00043153,2]
[402969477,1769019044337,-497.26368307,0.00043153,3]
[402969478,1769019044346,-673.10096997,0.00043153,2]
[402969479,1769019044355,-5316.65977231,0.00043153,4]
[402969480,1769019044363,-731.7606261,0.00043153,10]
[402969481,1769019044372,-1000.0,0.00043153,10]
[402969482,1769019044381,-500.0,0.00043153,10]
[402969483,1769019044390,-195.45561969,0.00043153,10]
[402969484,1769019044399,-1521.45746822,0.00043153,2]
[402969485,1769019044409,-32753.88534457,0.00043153,20]
[402969486,1769019044418,-124230.22040821,0.00043153,2]
[402969487,1769019044428,-220154.63914953,0.00043153,2]
[402969488,1769019044437,-13059.73252541,0.00043153,2]
[402969489,1769019044445,-132940.23485646,0.00043153,2]
[402969490,1769019044454,-10891.86909288,0.00043153,2]
[402969491,1769019044463,-47831.63213743,0.00043153,2]
[402969492,1769019044472,-13084059.19908875,0.00043153,20]
[402969493,1769019044490,-562.04662731,0.00043153,20]
[402969494,1769019044505,-281.34209607,0.00043153,20]
[402969495,1769019044556,-1334.00376711,0.00043153,20]
[402969496,1769019044653,-634.06,0.00017896,2]
[402969497,1769019044665,-1365.94,0.00017896,2]
[402969498,1769019044674,-44.7190096,0.00043153,20]
[402969505,1769019045991,-1000.0,0.00017896,2]
[402969507,1769019046000,-1000.0,0.00017896,2]
[402969509,1769019046010,-1000.0,0.00017917,2]
[402969511,1769019046019,-1000.0,0.00017917,2]
[402969513,1769019046029,-150.0,0.00032055,2]
[402969515,1769019046039,-150.0,0.00034521,2]
[402969516,1769019046049,-304.38145112,0.00038846,2]
[402969517,1769019046059,-300.0,0.00038846,2]
[402969518,1769019046069,-3865.61854888,0.00043153,20]
[402969519,1769019046126,-877.92,0.00043153,20]
[402969520,1769019046288,-356.3220009,0.00021687,2]
[402969529,1769019455456,-150.0068463,0.00025257,31]
[402969530,1769019455507,-150.0068463,0.00026463,36]
[402969531,1769019455554,-150.0068463,0.00027669,40]
[402969532,1769019455599,-150.0068463,0.00028875,44]
[402969533,1769019455644,-150.0068463,0.00030082,48]
[402969534,1769019455688,-150.0068463,0.00031288,53]
[402969535,1769019455732,-500.0,0.00033137,30]
[402969536,1769019455783,-150.00684637,0.000337,61]
[402969537,1769019455831,-209.0,0.0003488,30]
[402969538,1769019455881,-203.60365336,0.00034906,65]
[402969539,1769019455931,-203.60365336,0.00036113,70]
[402969540,1769019455980,-209.0,0.0003689,30]
[402969541,1769019456031,-203.60365336,0.00037319,74]
[402969542,1769019456080,-301.95,0.000375,30]
[402969543,1769019456129,-500.0,0.00038029,30]
[402969544,1769019456180,-203.60365336,0.00038525,81]
[402969545,1769019456230,-209.0,0.0003891,30]
[402969546,1769019456277,-203.60365336,0.00039731,89]
[402969547,1769019456325,-182.334,0.00040028,56]
[402969548,1769019456371,-1281.952,0.00040028,56]
[402969549,1769019456413,-209.0,0.0004093,30]
[402969550,1769019456457,-203.60365336,0.00040938,96]
[402969551,1769019456499,-441.68,0.00041,120]
[402969552,1769019456541,-200.0,0.00041178,120]
[402969553,1769019456584,-203.60365336,0.00042144,104]
[402969554,1769019456626,-200.0,0.0004291,120]
[402969555,1769019456668,-4271.1017,0.00042943,30]
[402969556,1769019456709,-209.0,0.0004295,30]
[402969557,1769019456752,-1000.0,0.00043014,30]
[402969558,1769019456799,-388.62954724,0.00043053,120]
[402969559,1769019456841,-150.0,0.00043126,60]
[402969560,1769019456886,-156.789825,0.00043153,120]
[402969561,1769019456935,-293.188087,0.00043153,120]
[402969562,1769019457227,-200.0,0.0004316,120]
[402969563,1769019457282,-166.22,0.000432,30]
[402969564,1769019457339,-1000.0,0.00043288,30]
[402969565,1769019457392,-203.60365336,0.0004335,116]
[402969566,1769019457436,-2862.0,0.00043507,30]
[402969567,1769019457479,-1000.0,0.00043562,30]
[402969568,1769019457520,-900.0,0.00043836,36]
[402969569,1769019457561,-1000.0,0.00043836,30]
[402969570,1769019457602,-150.0,0.00043868,30]
[402969571,1769019457643,-150.0,0.00043868,30]
[402969572,1769019457683,-500.0,0.00043868,30]
[402969573,1769019457722,-150.0,0.00043868,30]
[402969574,1769019457763,-500.0,0.00043868,30]
[402969575,1769019457804,-150.0,0.00043923,30]
[402969576,1769019457850,-500.0,0.00043923,30]
[402969577,1769019457894,-500.0,0.00043923,30]
[402969578,1769019457941,-2862.0,0.00043938,30]
[402969579,1769019457992,-200.0,0.00043978,30]
[402969580,1769019458046,-568.53291889,0.00043978,30]
[402969581,1769019458101,-500.0,0.00043978,30]
[402969582,1769019458156,-500.0,0.00044032,30]
[402969583,1769019458204,-500.0,0.00044087,30]
[402969584,1769019458253,-1000.0,0.0004411,30]
[402969585,1769019458304,-500.0,0.00044142,30]
[402969586,1769019458355,-500.0,0.00044197,30]
[402969587,1769019458402,-500.0,0.00044252,30]
[402969588,1769019458447,-500.0,0.00044306,30]
[402969589,1769019458492,-500.0,0.00044361,30]
[402969590,1769019458536,-2862.0,0.00044368,30]
[402969591,1769019458583,-1000.0,0.00044384,30]
[402969592,1769019458627,-500.0,0.00044416,30]
[402969593,1769019458670,-500.0,0.00044471,30]
[402969594,1769019458712,-347.0,0.00044526,30]
[402969595,1769019458758,-9186.38435946,0.00044556,120]
[402969596,1769019458807,-246.747159,0.00044641,120]
[402969597,1769019458854,-1000.0,0.00044658,30]
[402969598,1769019458903,-1000.0,0.00044932,30]
[402969599,1769019458958,-209.0,0.0004496,30]
[402969600,1769019459013,-1000.0,0.00045205,30]
[402969601,1769019459067,-1000.0,0.00045479,30]
[402969602,1769019459322,-1000.0,0.00045753,30]
[402969603,1769019459377,-10993.66123135,0.00045763,120]
[402969604,1769019459423,-1000.0,0.00046027,30]
[402969605,1769019459468,-166.22,0.000461,30]
[402969606,1769019459515,-1000.0,0.00046301,30]
[402969607,1769019459561,-1000.0,0.00046575,30]
[402969608,1769019459604,-1000.0,0.00046849,30]
[402969609,1769019459646,-10993.66123135,0.00046969,120]
[402969610,1769019459688,-209.0,0.0004698,30]
[402969611,1769019459730,-1000.0,0.00047123,30]
[402969612,1769019459773,-1000.0,0.00047397,30]
[402969613,1769019459817,-1000.0,0.00047671,30]
[402969614,1769019459861,-1000.0,0.00047945,30]
[402969615,1769019459911,-10993.66123135,0.00048175,120]
[402969616,1769019459962,-1000.0,0.00048219,30]
[402969617,1769019460014,-166.22,0.000483,30]
[402969618,1769019460064,-1000.0,0.00048493,30]
[402969619,1769019460110,-1152.0,0.00048767,30]
[402969620,1769019460161,-300.220208,0.00048889,120]
[402969621,1769019460215,-209.0,0.0004899,30]
[402969622,1769019460268,-900.0,0.00049315,38]
[402969623,1769019460315,-10993.66123135,0.00049381,120]
[402969624,1769019460363,-1399.27229642,0.0005,120]
[402969625,1769019460409,-1000000.0,0.0005,120]
[402969626,1769019460450,-500.0,0.00050356,60]
[402969627,1769019460492,-500.0,0.00050356,60]
[402969628,1769019460536,-10993.66123135,0.00050588,120]
[402969629,1769019460578,-568.62,0.000509,30]
[402969630,1769019460618,-500.0,0.00050904,60]
[402969631,1769019460660,-1000000.0,0.00051,120]
[402969632,1769019460702,-297.0,0.000511,30]
[402969633,1769019460743,-5000.0,0.000512,30]
[402969634,1769019460786,-20000.0,0.000513,30]
[402969635,1769019460830,-30000.0,0.000514,30]
[402969636,1769019460873,-500.0,0.00051452,60]
[402969637,1769019460921,-500.0,0.00051452,60]
[402969638,1769019460971,-46159.79983405,0.00051794,120]
[402969639,1769019461027,-166.22,0.00052,30]
[402969640,1769019461077,-806.0,0.00052,30]
[402969641,1769019461128,-150.0,0.00052,40]
[402969642,1769019461179,-1000000.0,0.00052,120]
[402969643,1769019461229,-500.0,0.00052548,60]
[402969644,1769019461274,-500.0,0.00052548,60]
[402969645,1769019461317,-250.0,0.00052599,60]
[402969646,1769019461361,-250.0,0.00052599,90]
[402969647,1769019461404,-500.0,0.00052599,60]
[402969648,1769019461446,-500.0,0.00052599,90]
[402969649,1769019461487,-151.0,0.00052599,60]
[402969650,1769019461528,-151.0,0.00052599,90]
[402969651,1769019461569,-250.0,0.00052649,79]
[402969652,1769019461610,-500.0,0.00052649,79]
[402969653,1769019461657,-151.0,0.00052649,79]
[402969654,1769019461696,-250.0,0.00052948,74]
[402969655,1769019461734,-500.0,0.00052948,74]
[402969656,1769019461774,-151.0,0.00052948,74]
[402969657,1769019461813,-250.0,0.00052959,76]